[Event "American Cup Women Champions 2024"]
[Site "Saint Louis"]
[Date "2024.03.13"]
[Round "1.3"]
[White "Abrahamyan, Tatev"]
[Black "Lee, Alice"]
[Result "1/2-1/2"]
[ECO "C43"]
[WhiteElo "2308"]
[BlackElo "2356"]
[Annotator "TA"]
[PlyCount "82"]
[EventDate "2024.03.11"]
[EventType "k.o."]
[EventCountry "USA"]
[SourceTitle "playchess.com"]
[Source "ChessBase"]
[SourceQuality "1"]
[TimeControl "5400+30"]

{[%evp 9,82,14,28,14,18,27,18,12,16,18,10,0,0,0,0,-11,0,-7,0,0,-9,-9,0,0,-10,-1,-6,-5,-6,-6,-8,-7,0,-5,-8,-14,-7,-12,-4,-8,-12,-14,0,0,0,0,0,0,0,-7,0,0,0,0,0,0,0,0,0,0,0,0,7,7,7,0,36,39,43,0,43,0,43,0,48]} 1. e4 {[%emt 0:00:04]} e5 {[%emt 0:00:06]} 2. Nf3 {[%emt 0:00:04]} Nf6 {[%emt 0:00:06]} 3. d4 {[%emt 0:00:17]} Nxe4 {[%emt 0:00:07]} 4. dxe5 {[%emt 0:00:09]} d5 {[%emt 0:00:30]} 5. Nbd2 {[%emt 0:00:13]} Qd7 {[%emt 0:00:09]} 6. Be2 {[%emt 0:01:54]} Nc6 {[%emt 0:00:12]} 7. O-O {[%emt 0:01:44]} Be7 {[%emt 0:00:13]} 8. c3 {[%emt 0:01:21]} O-O {[%emt 0:00:18]} 9. Bd3 {[%emt 0:00:55]} Qf5 {[%emt 0:00:26]} 10. Re1 {[%emt 0:01:50][%cal Rd2e4]} Rd8 $1 {[%emt 0:08:56]} 11. Nf1 {[%emt 0:07:31]} (11. Bxe4 $2 dxe4 12. Nd4 (12. Rxe4 $2 Qxe4 13. Qf1 Qg6 $19) 12... Nxd4 (12... Qxe5 13. Rxe4 Qg5 14. h4 $14) 13. cxd4 Rxd4 $19) 11... Nxe5 {[%emt 0:26:35]} 12. Ng3 {[%emt 0:01:11]} (12. Nxe5 Qxf2+ (12... Qxe5 13. f3 $14) 13. Kh1 Qf6 $17) 12... Qf6 {[%emt 0:03:58]} 13. Nxe5 {[%emt 0:13:58]} Qxe5 {[%emt 0:02:34]} 14. f3 {[%emt 0:01:47]} Bc5+ {[%emt 0:01:06]} 15. Be3 $132 {[%emt 0:00:11][%cal Bc1e3,Be3c5,Bc5e7][%mdl 2080] [#] Bxc5 would now be deadly. White has counterplay} Qg5 $1 {[%emt 0:06:52]} 16. Qc1 {[%emt 0:06:55]} Nxg3 {[%emt 0:01:27]} (16... Bxe3+ 17. Rxe3 f5 (17... Nxg3 $2 {too greedy.} 18. Re8+ Rxe8 19. Qxg5 $18) 18. fxe4 fxe4 19. Be2 $18) 17. Bxc5 {[%emt 0:00:06]} Qxc1 {[%emt 0:00:07]} 18. Raxc1 {[%emt 0:00:11]} Nf5 {[%emt 0:04:16]} 19. Re5 {[%emt 0:23:16]} g6 {[%emt 0:01:42]} 20. g4 {[%emt 0:03:56]} Ng7 {[%emt 0:02:30]} 21. Be7 {[%emt 0:14:21] A strong pair of Bishops.} Re8 {[%emt 0:00:17]} 22. Rce1 {[%emt 0:00:03]} c6 {[%emt 0:02:54]} 23. Kf2 {[%emt 0:08:30]} Bd7 {[%emt 0:01:01]} 24. Kg3 {[%emt 0:04:40]} Ne6 {[%emt 0:06:08]} 25. Bd6 {[%emt 0:01:17]} Nf8 {[%emt 0:00:42]} 26. f4 {[%emt 0:02:32][%cal Bf3f4,Bf4f5][%mdl 32]} f6 {[%emt 0:01:07]} 27. Re7 {[%emt 0:00:59]} Rxe7 {[%emt 0:00:25]} 28. Rxe7 {[%emt 0:00:08]} Re8 {[%emt 0:00:06]} 29. f5 {[%emt 0:00:15]} g5 {[%emt 0:08:30]} 30. Kf3 {[%emt 0:00:18]} Rxe7 {[%emt 0:02:56]} 31. Bxe7 $11 {[%emt 0:00:02][%mdl 4096] Endgame. KBB-KBN} Kf7 {[%emt 0:00:10]} 32. Bd6 {[%emt 0:01:25]} Bc8 {[%emt 0:00:33]} 33. Ke3 {[%emt 0:00:37]} Nd7 {[%emt 0:02:09]} 34. Kd4 {[%emt 0:00:14]} b6 {[%emt 0:01:10]} 35. b4 {[%emt 0:00:44]} b5 {[%emt 0:00:37]} 36. Be2 {[%emt 0:01:25]} Bb7 {[%emt 0:00:20]} 37. Bd3 {[%emt 0:00:34]} a6 {[%emt 0:00:29]} 38. Be2 {[%emt 0:00:18][%mdl 1024] White has compensation.} Ba8 {[%emt 0:00:11]} 39. Bd3 {[%emt 0:00:08]} Bb7 {[%emt 0:00:05]} 40. Be2 {[%emt 0:00:07]} Ba8 {[%emt 0:00:04]} 41. Bd3 {[%emt 0:00:08]} Bb7 {[%emt 0:00:26] Weighted Error Value: White=0.05 (flawless) /Black=0.02 (flawless) .  Inaccurate:     	---       	Black=1      OK:         	White=19    	Black=18     Best:        	White=2     	Black=6      Strong:       	---       	Black=1} 1/2-1/2

[Event "American Cup Women Champions 2024"]
[Site "Saint Louis"]
[Date "2024.03.13"]
[Round "1.3"]
[White "Yu, Jennifer"]
[Black "Tokhirjonova, Gulrukhbegim"]
[Result "1/2-1/2"]
[ECO "D45"]
[WhiteElo "2279"]
[BlackElo "2365"]
[Annotator "TA"]
[PlyCount "88"]
[EventDate "2024.03.11"]
[EventType "k.o."]
[EventCountry "USA"]
[SourceTitle "playchess.com"]
[Source "ChessBase"]
[SourceQuality "1"]
[TimeControl "5400+30"]

{[%evp 21,88,0,0,0,0,0,0,0,0,0,0,0,0,0,0,-1,-9,-42,12,6,6,9,9,0,6,9,24,24,35,1,1,0,16,1,24,18,7,0,0,0,0,0,0,0,19,0,0,0,0,0,0,0,23,23,23,23,23,23,23,0,23,0,23,0,23,0,23,0,23]} 1. d4 {[%emt 0:00:06]} Nf6 {[%emt 0:01:04]} 2. c4 {[%emt 0:00:30]} e6 {[%emt 0:00:21]} 3. Nf3 {[%emt 0:00:22]} d5 {[%emt 0:00:29]} 4. Nc3 {[%emt 0:00:25]} c6 {[%emt 0:00:32]} 5. e3 {[%emt 0:01:31]} Nbd7 {[%emt 0:00:32]} 6. Qc2 {[%emt 0:01:00]} Bd6 {[%emt 0:01:58]} 7. b3 {[%emt 0:02:43]} O-O {[%emt 0:00:19]} 8. Be2 {[%emt 0:00:01]} Re8 {[%emt 0:00:25]} 9. Bb2 {[%emt 0:04:13]} b6 {[%emt 0:03:26]} 10. O-O {[%emt 0:03:36]} Bb7 {[%emt 0:00:13]} 11. Rfd1 {[%emt 0:06:55]} Qe7 {[%emt 0:03:21]} 12. h3 {[%emt 0:07:37]} Rac8 {[%emt 0:01:35]} 13. a4 {[%emt 0:06:27]} a5 {[%emt 0:07:48]} 14. e4 {[%emt 0:10:46]} dxe4 {[%emt 0:09:45]} 15. Nxe4 {[%emt 0:00:54]} Nxe4 {[%emt 0:00:09]} 16. Qxe4 {[%emt 0:00:03]} Nf8 {[%emt 0:00:22]} 17. Qe3 {[%emt 0:12:38]} c5 {[%emt 0:04:08]} 18. Rd3 {[%emt 0:14:42]} Ng6 {[%emt 0:03:47]} 19. Ne5 {[%emt 0:01:40]} Bxe5 {[%emt 0:10:59]} (19... cxd4 $15 20. Nxg6 dxe3 21. Nxe7+ Bxe7) 20. dxe5 $11 {[%emt 0:00:34]} Rcd8 {[%emt 0:00:12]} 21. Rad1 {[%emt 0:07:43]} Rxd3 {[%emt 0:01:50]} 22. Rxd3 {[%emt 0:00:29]} Rd8 {[%emt 0:00:32] Prevents Rd6} 23. g3 {[%emt 0:00:41]} Bc6 {[%emt 0:05:05]} 24. h4 {[%emt 0:00:59]} Rxd3 {[%emt 0:00:51]} 25. Bxd3 {[%emt 0:00:47]} Qd7 {[%emt 0:02:48]} 26. f3 {[%emt 0:03:36]} h6 {[%emt 0:00:51]} 27. Kf2 {[%emt 0:00:43]} Qd8 {[%emt 0:02:38]} 28. Ke2 {[%emt 0:01:19]} Ne7 {[%emt 0:02:15]} 29. g4 {[%emt 0:03:37]} Ng6 {[%emt 0:05:37]} 30. Bxg6 {[%emt 0:02:19]} fxg6 {[%emt 0:00:02][%mdl 4096] Endgame. KQB-KQB} 31. g5 {[%emt 0:00:06]} hxg5 {[%emt 0:01:28]} 32. hxg5 {[%emt 0:00:07]} Kf7 {[%emt 0:00:49]} 33. Bc3 {[%emt 0:03:03]} Qh8 {[%emt 0:03:12]} 34. Qf4+ {[%emt 0:00:52]} Ke7 {[%emt 0:00:10]} 35. Qd2 {[%emt 0:03:16] [#] Black must now prevent Qd6+.} Qh2+ {[%emt 0:00:16]} 36. Ke3 {[%emt 0:00:02]} Qxd2+ {[%emt 0:01:53]} 37. Bxd2 {[%emt 0:00:04] KB-KB} Kd7 {[%emt 0:00:10]} 38. Bc3 {[%emt 0:00:34]} Bb7 {[%emt 0:00:06]} 39. Be1 {[%emt 0:00:29]} Bc6 {[%emt 0:00:09]} 40. Bc3 {[%emt 0:00:23]} Bb7 {[%emt 0:00:05]} 41. Bd2 {[%emt 0:00:05]} Bc6 {[%emt 0:00:05]} 42. Bc3 {[%emt 0:00:04]} Bb7 {[%emt 0:00:06]} 43. Bd2 {[%emt 0:00:05]} Bc6 {[%emt 0:00:08]} 44. Bc3 {[%emt 0:00:04]} Bb7 {[%emt 0:00:26] An interesting draw.   Weighted Error Value: White=0.09 (flawless) /Black=0.06 (flawless) .  Mistake:       	---       	Black=1      Inaccurate:     	White=2     	---        OK:         	White=9     	Black=17} 1/2-1/2

[Event "American Cup Women Champions 2024"]
[Site "Saint Louis"]
[Date "2024.03.13"]
[Round "1.3"]
[White "Tang, Zoey"]
[Black "Krush, Irina"]
[Result "0-1"]
[ECO "E11"]
[WhiteElo "2253"]
[BlackElo "2421"]
[Annotator "TA"]
[PlyCount "72"]
[EventDate "2024.03.11"]
[EventType "k.o."]
[EventCountry "USA"]
[SourceTitle "playchess.com"]
[Source "ChessBase"]
[SourceQuality "1"]
[TimeControl "5400+30"]

{[%evp 11,72,27,20,29,49,34,35,28,23,23,45,0,0,0,23,-35,-46,-42,-42,-77,-65,-77,-82,-56,-62,-91,-51,-101,-93,-87,-91,-128,-117,-197,-95,-102,-96,-145,-145,-381,-347,-358,-371,-354,-80,-81,-79,-83,-77,-222,-227,-2129,-2064,-3508,-2122,-4890,-2203,-29982,-29983,-29984,-29985,-29988,-29989]} 1. d4 {[%emt 0:00:03]} Nf6 {[%emt 0:00:09]} 2. c4 {[%emt 0:00:03]} e6 {[%emt 0:00:11]} 3. Nf3 {[%emt 0:00:05]} Bb4+ {[%emt 0:00:14]} 4. Bd2 {[%emt 0:00:04]} a5 {[%emt 0:00:18]} 5. a3 {[%emt 0:02:22]} Bxd2+ {[%emt 0:03:11]} 6. Qxd2 {[%emt 0:00:28]} d6 {[%emt 0:05:30]} 7. Nc3 {[%emt 0:01:08]} Nbd7 {[%emt 0:01:01]} 8. e4 {[%emt 0:07:02]} e5 {[%emt 0:01:38]} 9. Be2 {[%emt 0:05:00] White is slightly better.} O-O {[%emt 0:01:27]} 10. O-O {[%emt 0:00:58]} Re8 {[%emt 0:02:35]} 11. b4 {[%emt 0:06:42]} exd4 {[%emt 0:03:38]} 12. Qxd4 {[%emt 0:00:48]} Qe7 {[%emt 0:04:05]} 13. Bd3 {[%emt 0:05:45]} (13. Nd2 $11) 13... Ne5 $15 {[%emt 0:16:34]} 14. Nxe5 {[%emt 0:14:34]} dxe5 {[%emt 0:00:47]} 15. Qe3 {[%emt 0:00:06]} axb4 {[%emt 0:02:37]} 16. axb4 {[%emt 0:00:12]} Rxa1 {[%emt 0:00:07]} 17. Rxa1 {[%emt 0:00:06]} Qxb4 {[%emt 0:00:11]} 18. Be2 {[%emt 0:01:35]} Qe7 {[%emt 0:10:49]} 19. h3 {[%emt 0:01:33]} (19. Nd5 $15 Qd6 20. h3) 19... c6 $17 {[%emt 0:03:13]} 20. Na4 {[%emt 0:04:12]} h6 {[%emt 0:04:22]} 21. Nb6 {[%emt 0:05:00]} Be6 {[%emt 0:02:45]} 22. Ra5 {[%emt 0:08:23]} (22. c5 $17 {might work better.}) 22... Qc7 {[%emt 0:06:23]} (22... Qb4 $19 23. Ra3 Nxe4) 23. c5 {[%emt 0:01:15]} Rd8 {[%emt 0:01:35]} 24. Ra7 {[%emt 0:02:26]} ({White should play} 24. Ra4) 24... Rd4 {[%emt 0:03:47]} 25. Ba6 $2 {[%emt 0:06:31] [#]} (25. Bf3 $17) 25... Qe7 $19 {[%emt 0:01:41]} (25... Nxe4 $2 26. Rxb7 Qd8 27. Ra7 Rd1+ (27... Nxc5 28. Ra8 $16) 28. Kh2 $19) (25... Rxe4 26. Ra8+ Kh7 27. Bd3 $16) 26. Rxb7 {[%emt 0:08:38]} Qxc5 {[%emt 0:01:17]} 27. Kh2 {[%emt 0:00:40]} Nxe4 $2 {[%emt 0:05:48]} (27... Qc2 $19 {has better winning chances.} 28. Rc7 Qb1 (28... Qxe4 29. Qxe4 Nxe4 30. f3 $11) (28... Nxe4 $2 29. Nc8 $19) (28... Rxe4 $2 29. Bd3 $19)) 28. Bd3 $17 {[%emt 0:04:10] [#]} f5 {[%emt 0:05:17]} 29. Bxe4 {[%emt 0:02:59]} fxe4 {[%emt 0:00:03]} 30. Qg3 {[%emt 0:00:07]} (30. Nd7 $17 Bxd7 (30... Rxd7 31. Qxc5 Rxb7 32. Qxc6 $16) 31. Rxd7) 30... g5 $19 {[%emt 0:06:03] And now ...Rd3 would win.} 31. h4 $2 {[%emt 0:03:26]} (31. Qe3) 31... Rd3 {[%emt 0:00:47]} 32. Na4 {[%emt 0:05:47]} Qd4 {[%emt 0:01:13]} 33. Rb8+ {[%emt 0:00:16]} Kf7 {[%emt 0:00:49]} 34. Rb7+ {[%emt 0:00:33]} Kf6 {[%emt 0:01:33] Black mates.} 35. hxg5+ {[%emt 0:00:29]} hxg5 {[%emt 0:00:03]} 36. f3 {[%emt 0:01:02]} Rd1 {[%emt 0:00:05] Weighted Error Value: White=0.85/Black=0.21 (precise) .  Loses game:     	White=1     	---        Missed win:     	---       	Black=1      Mistake:       	White=6     	Black=1      Inaccurate:     	White=5     	Black=1      OK:         	White=7     	Black=10     Best:        	---       	Black=5} 0-1

[Event "American Cup Women Champions 2024"]
[Site "Saint Louis"]
[Date "2024.03.13"]
[Round "1.4"]
[White "Krush, Irina"]
[Black "Tang, Zoey"]
[Result "1-0"]
[ECO "A57"]
[WhiteElo "2421"]
[BlackElo "2253"]
[Annotator "TA"]
[PlyCount "79"]
[EventDate "2024.03.11"]
[EventType "k.o."]
[EventCountry "USA"]
[SourceTitle "playchess.com"]
[Source "ChessBase"]
[SourceQuality "1"]
[TimeControl "900+10"]

{[%evp 25,79,26,25,8,33,25,76,64,85,76,124,112,139,110,148,155,152,125,121,119,238,153,265,266,289,289,296,296,318,316,300,230,360,350,402,177,169,171,175,154,152,162,157,0,132,0,374,333,413,397,833,538,2671,2375,29988,29989]} 1. d4 {[%emt 0:00:03]} Nf6 {[%emt 0:00:02]} 2. c4 {[%emt 0:00:03]} c5 {[%emt 0:00:02]} 3. d5 {[%emt 0:00:33]} b5 {[%emt 0:00:02]} 4. cxb5 {[%emt 0:00:11]} a6 {[%emt 0:00:02]} 5. b6 {[%emt 0:00:56]} Qxb6 {[%emt 0:02:42]} 6. Nc3 {[%emt 0:00:03]} d6 {[%emt 0:01:03]} 7. e4 {[%emt 0:00:02]} g6 {[%emt 0:00:56]} 8. Nf3 {[%emt 0:00:02]} Bg7 {[%emt 0:00:04]} 9. a4 {[%emt 0:01:02][%cal Ba2a4,Ba4a5][%mdl 32]} Bg4 {[%emt 0:00:27]} 10. a5 {[%emt 0:00:24]} Qc7 {[%emt 0:00:22]} 11. Be2 {[%emt 0:00:05]} Bxf3 {[%emt 0:00:09]} 12. Bxf3 {[%emt 0:00:03]} O-O {[%emt 0:00:14][%cal Bh8f8,Bf8b8,Bb8b4][%mdl 32]} 13. O-O {[%emt 0:00:06]} Nbd7 {[%emt 0:00:13]} 14. Be2 {[%emt 0:00:13]} Rfb8 {[%emt 0:01:06]} 15. Qc2 {[%emt 0:00:11]} e6 {[%emt 0:00:48]} (15... Ne8 $11) 16. dxe6 $16 {[%emt 0:01:12] White is better.} fxe6 {[%emt 0:00:02]} 17. Bc4 {[%emt 0:00:01]} Nf8 {[%emt 0:00:16] [#]} ({Black should play} 17... Re8) 18. e5 $1 {[%emt 0:05:40][%mdl 512]} dxe5 {[%emt 0:00:33]} (18... Ng4 19. exd6) 19. Bg5 {[%emt 0:00:26] This pair of bishops is nice.} Rb4 {[%emt 0:01:56]} 20. b3 {[%emt 0:00:19]} Rbb8 {[%emt 0:02:11]} 21. Bxf6 {[%emt 0:00:26]} Bxf6 {[%emt 0:00:02]} 22. Ne4 {[%emt 0:00:02]} Bg7 {[%emt 0:00:11]} (22... Be7 $16 23. Qe2 Qc6) 23. Qe2 {[%emt 0:00:34][%cal Of1d1]} Qe7 {[%emt 0:01:31]} (23... Rd8 $16 {might work better.} 24. Bxa6 Rd4) 24. Rfd1 $18 {[%emt 0:00:44]} Rd8 {[%emt 0:01:03]} 25. Rxd8 {[%emt 0:00:08]} (25. Bxa6 Rd4 26. Bc4 Nd7) 25... Qxd8 {[%emt 0:00:14]} 26. g3 {[%emt 0:01:42]} (26. Bxa6 Ra7 27. h3 (27. Nxc5 Qd4 $16) 27... Qa8) (26. Nxc5 Qd4 27. Rc1 Rd8 $18 (27... Qxc5 $2 28. Bxe6+ Nxe6 29. Rxc5 $18)) 26... Kh8 {[%emt 0:01:57]} 27. h4 {[%emt 0:00:26][%cal Bh2h4,Bh4h5][%mdl 32]} (27. Bxa6 Ra7 28. Ra4 (28. Nxc5 Qd4 $18) 28... h6 29. Nxc5 e4 30. Nxe4 h5 $18) (27. Nxc5 Qd4 28. Ra4 Qxc5 $19) 27... h6 {[%emt 0:00:14]} 28. h5 {[%emt 0:00:09]} (28. Bxa6 Ra7 29. Ra2 (29. Nxc5 Qd4 $18) 29... Kg8 $18) (28. Nxc5 $2 Qd4 29. Ra2 Qxc5 $19) 28... g5 {[%emt 0:00:07]} (28... gxh5 {was called for.} 29. Qxh5 (29. Nxc5 $2 {perishes.} Qd4 $19) 29... Nh7) 29. Bxa6 {[%emt 0:00:56]} (29. Nxc5 $2 {too greedy.} Qd4 30. Ra4 Qxc5 $19) 29... Qd4 {[%emt 0:00:39]} 30. Rd1 {[%emt 0:00:10]} (30. Ra4 $142 Qd7 31. Nxc5) 30... Qb4 {[%emt 0:00:11] Black is weak on the light squares} 31. Bc4 {[%emt 0:00:37] [#] Hoping for a6.} ({Weaker is} 31. Ra1 Nd7 32. Qc4 Nb8 $18) 31... Qxa5 {[%emt 0:00:31]} 32. Qe3 {[%emt 0:00:34]} Rc8 {[%emt 0:00:19]} 33. Nd6 $36 {[%emt 0:00:35][%mdl 3072] White has strong compensation. White is really pushing.} Rb8 {[%emt 0:00:02]} 34. Ne4 {[%emt 0:00:13] White has more active pieces.} Rc8 $1 {[%emt 0:00:18]} 35. Nd6 {[%emt 0:00:02]} ({White should try} 35. Rd6 $16) 35... Rc7 $2 {[%emt 0:00:13][%mdl 8192]} (35... Rb8 $1 $11 {and Black has nothing to worry.}) 36. Ne8 {[%emt 0:00:13][%cal Oe8g7] Strongly threatening Nxg7!} Re7 {[%emt 0:00:10]} 37. Nxg7 {[%emt 0:00:06]} Rxg7 {[%emt 0:00:02]} (37... Kxg7 38. Qxe5+ Kf7) 38. Qxe5 {[%emt 0:00:05][%cal Oe5f6] And now Qf6! would win.} Qb6 {[%emt 0:00:19]} 39. Qf6 {[%emt 0:00:12][%csl LRf8,LRh6]} Nh7 {[%emt 0:00:12]} 40. Rd8+ {[%emt 0:00:05] Weighted Error Value: White=0.48/Black=0.82.  Loses game:     	---       	Black=1      Mistake:       	White=2     	Black=6      Inaccurate:     	White=2     	Black=3      OK:         	White=12    	Black=3      Best:        	White=2     	---        Strong:       	---       	Black=1} 1-0

[Event "American Cup Women Champions 2024"]
[Site "Saint Louis"]
[Date "2024.03.14"]
[Round "2.1"]
[White "Krush, Irina"]
[Black "Paikidze, Nazi"]
[Result "1-0"]
[ECO "E49"]
[WhiteElo "2421"]
[BlackElo "2319"]
[Annotator "TA"]
[PlyCount "68"]
[EventDate "2024.03.11"]
[EventType "k.o."]
[EventCountry "USA"]
[SourceTitle "playchess.com"]
[Source "ChessBase"]
[SourceQuality "1"]
[TimeControl "900+10"]

{[%evp 26,68,24,17,57,64,85,85,190,210,215,225,214,170,437,435,418,406,515,487,497,490,602,601,526,474,1168,1190,1242,1236,1322,853,1039,1113,1604,1616,2082,1643,29983,29984,29989,29990,29990,29991,29997]} 1. c4 {[%emt 0:00:00]} e6 {[%emt 0:00:00]} 2. Nc3 {[%emt 0:00:00]} d5 {[%emt 0:00:00]} 3. d4 {[%emt 0:00:00]} Bb4 {[%emt 0:00:00]} 4. a3 {[%emt 0:00:00]} Bxc3+ {[%emt 0:00:00]} 5. bxc3 {[%emt 0:00:00]} Nf6 {[%emt 0:00:00]} 6. e3 {[%emt 0:00:00]} O-O {[%emt 0:00:00]} 7. cxd5 {[%emt 0:00:00]} exd5 {[%emt 0:00:00]} 8. Bd3 {[%emt 0:00:00]} c5 {[%emt 0:00:00]} 9. Ne2 {[%emt 0:00:00]} b6 {[%emt 0:00:00]} 10. O-O {[%emt 0:00:00]} Ba6 {[%emt 0:00:00]} 11. f3 {[%emt 0:00:00]} Re8 {[%emt 0:00:00]} 12. Ng3 {[%emt 0:00:00]} Bxd3 {[%emt 0:00:00]} 13. Qxd3 {[%emt 0:00:00]} Nc6 {[%emt 0:00:00]} 14. Bb2 {[%emt 0:00:00]} Qd7 {[%emt 0:00:00]} 15. e4 {[%emt 0:00:00]} dxe4 {[%emt 0:00:00]} 16. fxe4 {[%emt 0:00:00][%cal Of1f6] And now Rxf6! would win.} Ne5 {[%emt 0:00:00]} (16... Qg4 $16) 17. Qe2 $18 {[%emt 0:00:00]} Ng6 {[%emt 0:00:00] [#]} 18. Rxf6 {[%mdl 512]} gxf6 {[%emt 0:00:00]} 19. Nh5 {[%emt 0:00:00]} Re6 {[%emt 0:00:00]} (19... Kh8 20. Nxf6 Qd6 21. Nxe8 Rxe8) 20. d5 {[%emt 0:00:00]} Rd6 {[%emt 0:00:00]} 21. c4 {[%emt 0:00:00]} Ne5 {[%emt 0:00:00]} 22. h3 {[%emt 0:00:00] Wards off Qg4} Qe7 {[%emt 0:00:00]} 23. Rf1 {[%emt 0:00:00]} Re8 {[%emt 0:00:00]} 24. Ng3 {[%emt 0:00:00][%cal Bh5g3,Bg3f5,Bf5h6,Bh6g4,Bg4e5,Be5c6][%mdl 32] Threatens to win with Nf5.} Qf8 {[%emt 0:00:00]} 25. Nf5 {[%emt 0:00:00][%cal Oe2h5] Qh5! is the strong threat.} Kh8 {[%emt 0:05:50]} (25... b5 $142 26. cxb5 Rb6) 26. Qh5 {[%emt 0:00:00]} b5 {[%emt 0:01:04]} 27. Nh6 {[%emt 0:00:00]} Kg7 {[%emt 0:00:45]} 28. cxb5 {[%emt 0:00:00] aiming for Rf4.} c4 {[%emt 0:03:52]} 29. Ng4 {[%emt 0:00:00]} Qe7 {[%emt 0:03:48]} 30. Nxe5 {[%emt 0:00:00]} c3 {[%emt 0:00:48]} 31. Bxc3 {[%emt 0:00:00] White threatens Ng4 and mate.} Qc7 {[%emt 0:00:00]} 32. Nc6 {[%emt 0:00:00] White mates.} Rxe4 {[%emt 0:00:00]} 33. Qg5+ {[%emt 0:00:00]} Kf8 {[%emt 0:00:00]} 34. Bxf6 {[%emt 0:00:00]} Rf4 {[%emt 0:00:14] White took control after the opening.   Weighted Error Value: White=0.06 (flawless) /Black=0.94.  Mistake:       	---       	Black=2      OK:         	White=3     	Black=4      Best:        	White=4     	---        Brilliant:      	White=1     	---} 1-0